lending/lending_fUSD_20240410
["ID","MTS","AMOUNT","RATE_DAILY","PERIOD"]
[322067406,1712739062710,-500.0,0.00021924,2]
[322067407,1712739062720,-404.67631568,0.00021924,2]
[322067408,1712739062729,-500.0,0.00021924,2]
[322067409,1712739062739,-500.0,0.00021924,2]
[322067410,1712739062751,-500.0,0.00021924,2]
[322067411,1712739062760,-500.0,0.00021924,2]
[322067412,1712739062769,-500.0,0.00021924,2]
[322067413,1712739062779,-500.0,0.00021924,2]
[322067414,1712739062789,-500.0,0.00021924,2]
[322067415,1712739062798,-500.0,0.00021924,2]
[322067416,1712739062807,-1177.39,0.00021924,2]
[322067417,1712739062816,-996.62,0.00021924,2]
[322067418,1712739062829,-6692.18,0.00021924,2]
[322067419,1712739062840,-1135.82,0.00021924,2]
[322067420,1712739062850,-324.65685686,0.00021924,2]
[322067421,1712739062861,-973.83,0.00021924,2]
[322067422,1712739062872,-10415.18,0.00021924,2]
[322067423,1712739062880,-500.0,0.00021924,2]
[322067424,1712739062890,-161.75400515,0.00021924,2]
[322067425,1712739062899,-500.0,0.00021924,2]
[322067426,1712739062908,-783.55857008,0.00022,2]
[322067427,1712739062919,-640.70477182,0.00022,2]
[322067428,1712739062928,-150.0,0.00022,2]
[322067429,1712739062937,-500.0,0.00022121,2]
[322067430,1712739062947,-500.0,0.00022121,2]
[322067431,1712739062956,-500.0,0.00022121,2]
[322067432,1712739062966,-500.0,0.00022121,2]
[322067433,1712739062976,-500.0,0.00022121,2]
[322067434,1712739062986,-500.0,0.00022121,2]
[322067435,1712739062995,-500.0,0.00022121,2]
[322067436,1712739063004,-500.0,0.00022121,2]
[322067437,1712739063014,-946.69,0.00022121,2]
[322067438,1712739063023,-1419.29,0.00022121,2]
[322067439,1712739063080,-592.01913978,0.00022121,2]
[322067440,1712739063089,-500.0,0.00022121,2]
[322067441,1712739063099,-625.16,0.00022121,2]
[322067442,1712739063108,-500.0,0.00022121,2]
[322067443,1712739063117,-1482.35,0.00022121,2]
[322067444,1712739063127,-500.0,0.00022121,2]
[322067445,1712739063136,-500.0,0.00022121,2]
[322067446,1712739063145,-861.14,0.00022121,2]
[322067447,1712739063155,-500.0,0.00022121,2]
[322067448,1712739063164,-500.0,0.00022121,2]
[322067449,1712739063173,-528.57,0.00022121,2]
[322067450,1712739063182,-2120.71,0.00022121,2]
[322067451,1712739063191,-500.0,0.00022121,2]
[322067452,1712739063200,-552.2,0.00022121,2]
[322067453,1712739063210,-500.0,0.00022121,2]
[322067454,1712739063219,-2408.96,0.00022121,2]
[322067455,1712739063229,-1276.57,0.00022121,2]
[322067456,1712739063238,-1217.14,0.00022121,2]
[322067457,1712739063247,-2123.86,0.00022121,2]
[322067458,1712739063257,-511.31,0.00022121,2]
[322067459,1712739063266,-572.02,0.00022121,2]
[322067460,1712739063275,-500.0,0.00022121,2]
[322067461,1712739063284,-742.1,0.00022121,2]
[322067462,1712739063293,-1137.02,0.00022121,2]
[322067463,1712739063303,-500.0,0.00022121,2]
[322067464,1712739063313,-1754.38,0.00022121,2]
[322067465,1712739063328,-500.0,0.00022121,2]
[322067466,1712739063339,-984.81,0.00022121,2]
[322067467,1712739063349,-500.0,0.00022121,2]
[322067468,1712739063359,-612.58,0.00022121,2]
[322067469,1712739063370,-619.53,0.00022121,2]
[322067470,1712739063380,-500.0,0.00022121,2]
[322067471,1712739063390,-500.0,0.00022121,2]
[322067472,1712739063399,-530.44,0.00022121,2]
[322067473,1712739063409,-1083.32,0.00022121,2]
[322067474,1712739063418,-765.23,0.00022121,2]
[322067475,1712739063429,-500.0,0.00022121,2]
[322067476,1712739063438,-500.0,0.00022121,2]
[322067477,1712739063448,-500.0,0.00022121,2]
[322067478,1712739063458,-1986.39,0.00022121,2]
[322067479,1712739063467,-521.75,0.00022121,2]
[322067480,1712739063477,-500.0,0.00022121,2]
[322067481,1712739063487,-500.0,0.00022121,2]
[322067482,1712739063496,-500.0,0.00022121,2]
[322067483,1712739063505,-500.0,0.00022121,2]
[322067484,1712739063515,-774.63,0.00022121,2]
[322067485,1712739063524,-1362.67,0.00022121,2]
[322067486,1712739063533,-500.0,0.00022121,2]
[322067487,1712739063543,-3704.96,0.00022121,2]
[322067488,1712739063552,-500.0,0.00022121,2]
[322067489,1712739063561,-500.0,0.00022121,2]
[322067490,1712739063573,-500.0,0.00022121,2]
[322067491,1712739063582,-500.0,0.00022121,2]
[322067492,1712739063591,-500.0,0.00022121,2]
[322067493,1712739063600,-500.0,0.00022122,2]
[322067494,1712739063609,-500.0,0.00022122,2]
[322067495,1712739063618,-500.0,0.00022122,2]
[322067496,1712739063627,-500.0,0.00022122,2]
[322067497,1712739063636,-500.0,0.00022122,2]
[322067498,1712739063645,-570.79,0.00022122,2]
[322067499,1712739063654,-500.0,0.00022122,2]
[322067500,1712739063663,-500.0,0.00022122,2]
[322067501,1712739063672,-231.5923692,0.00022122,2]
[322067502,1712739063681,-500.0,0.00022122,2]
[322067503,1712739063690,-500.0,0.00022122,2]
[322067504,1712739063699,-613.93,0.00022122,2]
[322067505,1712739063708,-500.0,0.00022122,2]
[322067506,1712739063717,-500.0,0.00022122,2]
[322067507,1712739063726,-500.0,0.00022122,2]
[322067508,1712739063736,-518.81704559,0.00022122,2]
[322067509,1712739063746,-578.03,0.00022122,2]
[322067510,1712739063756,-500.0,0.00022122,2]
[322067511,1712739063765,-500.0,0.00022122,2]
[322067512,1712739063774,-934.61,0.00022122,2]
[322067513,1712739063783,-500.0,0.00022122,2]
[322067514,1712739063793,-150.0,0.00022122,2]
[322067515,1712739063802,-500.0,0.00022122,2]
[322067516,1712739063812,-500.0,0.00022122,2]
[322067517,1712739063823,-616.26,0.00022122,2]
[322067518,1712739063832,-887.99,0.00022122,2]
[322067519,1712739063842,-548.96,0.00022122,2]
[322067520,1712739063850,-500.0,0.00022122,2]
[322067521,1712739063860,-898.59,0.00022122,2]
[322067522,1712739063869,-500.0,0.00022122,2]
[322067523,1712739063878,-500.0,0.00022122,2]
[322067524,1712739063887,-711.11,0.00022122,2]
[322067525,1712739063896,-683.32,0.00022122,2]
[322067526,1712739063905,-500.0,0.00022122,2]
[322067527,1712739063914,-519.48,0.00022122,2]
[322067528,1712739063923,-500.0,0.00022122,2]
[322067529,1712739063932,-626.89,0.00022122,2]
[322067530,1712739063941,-964.25,0.00022122,2]
[322067531,1712739063950,-500.0,0.00022122,2]
[322067532,1712739063959,-500.0,0.00022122,2]
[322067533,1712739063969,-671.33,0.00022122,2]
[322067534,1712739063978,-508.86,0.00022122,2]
[322067535,1712739063987,-500.0,0.00022122,2]
[322067536,1712739063996,-547.4,0.00022122,2]
[322067537,1712739064005,-500.0,0.00022122,2]
[322067538,1712739064014,-529.97,0.00022122,2]
[322067539,1712739064023,-500.0,0.00022122,2]
[322067540,1712739064032,-565.15,0.00022122,2]
[322067541,1712739064042,-1021.16,0.00022122,2]
[322067542,1712739064052,-887.08,0.00022122,2]
[322067543,1712739064061,-500.0,0.00022122,2]
[322067544,1712739064071,-553.78145633,0.00022122,2]
[322067545,1712739064082,-500.0,0.00022122,2]
[322067546,1712739064093,-500.0,0.00022122,2]
[322067547,1712739064103,-500.0,0.00022122,2]
[322067548,1712739064113,-513.89,0.00022122,2]
[322067549,1712739064123,-677.27,0.00022122,2]
[322067550,1712739064132,-885.74,0.00022122,2]
[322067551,1712739064141,-1445.14,0.00022122,2]
[322067552,1712739064150,-500.0,0.00022122,2]
[322067553,1712739064160,-753.45,0.00022122,2]
[322067554,1712739064168,-500.0,0.00022122,2]
[322067555,1712739064178,-500.0,0.00022122,2]
[322067556,1712739064188,-500.0,0.00022122,2]
[322067557,1712739064197,-4935.81,0.00022122,2]
[322067558,1712739064208,-500.37273442,0.00022122,2]
[322067559,1712739064219,-728.63,0.00022122,2]
[322067560,1712739064229,-500.0,0.00022122,2]
[322067561,1712739064240,-545.78,0.00022122,2]
[322067562,1712739064254,-500.0,0.00022122,2]
[322067563,1712739064265,-934.77,0.00022122,2]
[322067564,1712739064276,-500.0,0.00022122,2]
[322067565,1712739064286,-500.0,0.00022122,2]
[322067566,1712739064296,-537.35,0.00022122,2]
[322067567,1712739064306,-500.0,0.00022122,2]
[322067568,1712739064316,-515.08,0.00022122,2]
[322067569,1712739064332,-500.0,0.00022122,2]
[322067570,1712739064343,-631.39,0.00022122,2]
[322067571,1712739064357,-2573.74,0.00022122,2]
[322067572,1712739064367,-500.0,0.00022122,2]
[322067573,1712739064376,-632.78,0.00022122,2]
[322067574,1712739064386,-153.69544486,0.00022122,2]
[322067575,1712739064397,-500.0,0.00022122,2]
[322067576,1712739064408,-857.64,0.00022122,2]
[322067577,1712739064419,-500.0,0.00022122,2]
[322067578,1712739064430,-500.0,0.00022122,2]
[322067579,1712739064440,-500.0,0.00022122,2]
[322067580,1712739064451,-526.43,0.00022122,2]
[322067581,1712739064462,-500.0,0.00022122,2]
[322067582,1712739064473,-710.81,0.00022122,2]
[322067583,1712739064484,-753.09,0.00022122,2]
[322067584,1712739064495,-500.0,0.00022122,2]
[322067585,1712739064506,-500.0,0.00022122,2]
[322067586,1712739064516,-500.0,0.00022122,2]
[322067587,1712739064527,-500.0,0.00022122,2]
[322067588,1712739064538,-1404.33,0.00022122,2]
[322067589,1712739064550,-500.0,0.00022122,2]
[322067590,1712739064564,-500.0,0.00022122,2]
[322067591,1712739064581,-500.0,0.00022122,2]
[322067592,1712739064592,-500.0,0.00022122,2]
[322067593,1712739064603,-627.71,0.00022122,2]
[322067594,1712739064614,-1405.94,0.00022122,2]
[322067595,1712739064624,-530.64,0.00022122,2]
[322067596,1712739064635,-652.83262,0.0002217,2]
[322067597,1712739064646,-167.02339553,0.00022197,2]
[322067598,1712739064656,-802.49,0.00022198,2]
[322067599,1712739064666,-1567.52,0.00022198,2]
[322067600,1712739064677,-500.0,0.00022198,2]
[322067601,1712739064688,-500.0,0.00022198,2]
[322067602,1712739064699,-500.0,0.00022198,2]
[322067603,1712739064709,-500.0,0.00022198,2]
[322067604,1712739064719,-500.0,0.00022198,2]
[322067605,1712739064729,-500.0,0.00022198,2]
[322067606,1712739064740,-500.0,0.00022198,2]
[322067607,1712739064750,-500.0,0.00022198,2]
[322067608,1712739064762,-500.0,0.00022198,2]
[322067609,1712739064772,-1177.39,0.00022198,2]
[322067610,1712739064783,-996.62,0.00022198,2]
[322067611,1712739064792,-6692.18,0.00022198,2]
[322067612,1712739064802,-1135.82,0.00022198,2]
[322067613,1712739064812,-973.83,0.00022198,2]
[322067614,1712739064825,-10415.18,0.00022198,2]
[322067615,1712739064836,-500.0,0.00022198,2]
[322067616,1712739064846,-500.0,0.00022198,2]
[322067617,1712739064856,-700.0,0.00022272,2]
[322067618,1712739064865,-3300.0,0.00022272,2]
[322067619,1712739064875,-394.0,0.000223,2]
[322067620,1712739064885,-405.0,0.000223,2]
[322067621,1712739064895,-180.0,0.00022301,2]
[322067622,1712739064905,-500.0,0.00022395,2]
[322067623,1712739064914,-411.85418363,0.00022395,2]
[322067624,1712739064924,-500.0,0.00022395,2]
[322067625,1712739064934,-500.0,0.00022395,2]
[322067626,1712739064945,-246.23649192,0.00022395,2]
[322067627,1712739064955,-500.0,0.00022395,2]
[322067628,1712739064965,-500.0,0.00022395,2]
[322067629,1712739064974,-500.0,0.00022395,2]
[322067630,1712739064984,-946.69,0.00022395,2]
[322067631,1712739064993,-1419.29,0.00022395,2]
[322067632,1712739065003,-500.0,0.00022395,2]
[322067633,1712739065013,-625.16,0.00022395,2]
[322067634,1712739065022,-500.0,0.00022395,2]
[322067635,1712739065032,-1482.35,0.00022395,2]
[322067636,1712739065042,-500.0,0.00022395,2]
[322067637,1712739065052,-500.0,0.00022395,2]
[322067638,1712739065063,-861.14,0.00022395,2]
[322067639,1712739065076,-500.0,0.00022395,2]
[322067640,1712739065086,-500.0,0.00022395,2]
[322067641,1712739065096,-528.57,0.00022395,2]
[322067642,1712739065107,-2120.71,0.00022395,2]
[322067643,1712739065117,-472.61480548,0.00022395,2]
[322067644,1712739065127,-552.2,0.00022395,2]
[322067645,1712739065139,-500.0,0.00022395,2]
[322067646,1712739065149,-2408.96,0.00022395,2]
[322067647,1712739065159,-1276.57,0.00022395,2]
[322067648,1712739065170,-1217.14,0.00022395,2]
[322067649,1712739065180,-2123.86,0.00022395,2]
[322067650,1712739065190,-511.31,0.00022395,2]
[322067651,1712739065200,-572.02,0.00022395,2]
[322067652,1712739065211,-500.0,0.00022395,2]
[322067653,1712739065220,-742.1,0.00022395,2]
[322067654,1712739065231,-1137.02,0.00022395,2]
[322067655,1712739065241,-500.0,0.00022395,2]
[322067656,1712739065251,-1754.38,0.00022395,2]
[322067657,1712739065262,-203.07197739,0.00022395,2]
[322067658,1712739065272,-984.81,0.00022395,2]
[322067659,1712739065282,-500.0,0.00022395,2]
[322067660,1712739065291,-612.58,0.00022395,2]
[322067661,1712739065302,-619.53,0.00022395,2]
[322067662,1712739065312,-500.0,0.00022395,2]
[322067663,1712739065324,-500.52698553,0.00022395,2]
[322067664,1712739065334,-530.44,0.00022395,2]
[322067665,1712739065343,-1083.32,0.00022395,2]
[322067666,1712739065353,-765.23,0.00022395,2]
[322067667,1712739065364,-500.0,0.00022395,2]
[322067668,1712739065374,-500.0,0.00022395,2]
[322067669,1712739065383,-500.0,0.00022395,2]
[322067670,1712739065395,-1986.39,0.00022395,2]
[322067671,1712739065406,-521.75,0.00022395,2]
[322067672,1712739065416,-500.0,0.00022395,2]
[322067673,1712739065429,-500.0,0.00022395,2]
[322067674,1712739065440,-500.0,0.00022395,2]
[322067675,1712739065451,-500.0,0.00022395,2]
[322067676,1712739065461,-774.63,0.00022395,2]
[322067677,1712739065472,-1362.67,0.00022395,2]
[322067678,1712739065482,-500.0,0.00022395,2]
[322067679,1712739065493,-3704.96,0.00022395,2]
[322067680,1712739065502,-500.0,0.00022395,2]
[322067681,1712739065513,-220.82843786,0.00022395,2]
[322067682,1712739065522,-500.0,0.00022395,2]
[322067683,1712739065532,-500.0,0.00022395,2]
[322067684,1712739065542,-500.0,0.00022395,2]
[322067685,1712739065551,-500.0,0.00022396,2]
[322067686,1712739065561,-500.0,0.00022396,2]
[322067687,1712739065572,-500.0,0.00022396,2]
[322067688,1712739065582,-500.0,0.00022396,2]
[322067689,1712739065592,-500.0,0.00022396,2]
[322067690,1712739065602,-570.79,0.00022396,2]
[322067691,1712739065611,-290.19,0.00022396,2]
[322067692,1712739065620,-500.0,0.00022396,2]
[322067693,1712739065630,-317.94171456,0.00022396,2]
[322067694,1712739065640,-500.0,0.00022396,2]
[322067695,1712739065650,-613.93,0.00022396,2]
[322067696,1712739065660,-500.0,0.00022396,2]
[322067697,1712739065670,-500.0,0.00022396,2]
[322067698,1712739065680,-500.0,0.00022396,2]
[322067699,1712739065690,-578.03,0.00022396,2]
[322067700,1712739065699,-460.7479823,0.00022396,2]
[322067701,1712739065710,-500.0,0.00022396,2]
[322067702,1712739065719,-934.61,0.00022396,2]
[322067703,1712739065729,-500.0,0.00022396,2]
[322067704,1712739065739,-150.0,0.00022396,2]
[322067705,1712739065751,-246.02157366,0.00022396,2]
[322067706,1712739065760,-500.0,0.00022396,2]
[322067707,1712739065770,-616.26,0.00022396,2]
[322067708,1712739065782,-887.99,0.00022396,2]
[322067709,1712739065793,-548.96,0.00022396,2]
[322067710,1712739065804,-500.0,0.00022396,2]
[322067711,1712739065815,-898.59,0.00022396,2]
[322067712,1712739065828,-500.0,0.00022396,2]
[322067713,1712739065838,-587.87939778,0.00022396,2]
[322067714,1712739065849,-711.11,0.00022396,2]
[322067715,1712739065859,-683.32,0.00022396,2]
[322067716,1712739065869,-500.0,0.00022396,2]
[322067717,1712739065879,-519.48,0.00022396,2]
[322067718,1712739065889,-500.0,0.00022396,2]
[322067719,1712739065899,-626.89,0.00022396,2]
[322067720,1712739065910,-964.25,0.00022396,2]
[322067721,1712739065919,-566.72004322,0.00022396,2]
[322067722,1712739065929,-500.0,0.00022396,2]
[322067723,1712739065939,-671.33,0.00022396,2]
[322067724,1712739065949,-508.86,0.00022396,2]
[322067725,1712739065959,-519.66847684,0.00022396,2]
[322067726,1712739065968,-547.4,0.00022396,2]
[322067727,1712739065978,-500.0,0.00022396,2]
[322067728,1712739065988,-529.97,0.00022396,2]
[322067729,1712739065997,-500.0,0.00022396,2]
[322067730,1712739066007,-9508.6945082,0.00022396,2]
[322067731,1712739066016,-565.15,0.00022396,2]
[322067732,1712739066026,-1021.16,0.00022396,2]
[322067733,1712739066035,-887.08,0.00022396,2]
[322067734,1712739066045,-500.0,0.00022396,2]
[322067735,1712739066054,-500.0,0.00022396,2]
[322067736,1712739066064,-500.0,0.00022396,2]
[322067737,1712739066074,-500.0,0.00022396,2]
[322067738,1712739066084,-251.5891478,0.00022396,2]
[322067739,1712739066094,-513.89,0.00022396,2]
[322067740,1712739066104,-677.27,0.00022396,2]
[322067741,1712739066114,-885.74,0.00022396,2]
[322067742,1712739066123,-1445.14,0.00022396,2]
[322067743,1712739066133,-500.0,0.00022396,2]
[322067744,1712739066143,-753.45,0.00022396,2]
[322067745,1712739066154,-495.7393971,0.00022396,2]
[322067746,1712739066165,-500.0,0.00022396,2]
[322067747,1712739066176,-500.0,0.00022396,2]
[322067748,1712739066188,-500.0,0.00022396,2]
[322067749,1712739066200,-4935.81,0.00022396,2]
[322067750,1712739066212,-728.63,0.00022396,2]
[322067751,1712739066223,-500.0,0.00022396,2]
[322067752,1712739066235,-545.78,0.00022396,2]
[322067753,1712739066246,-500.0,0.00022396,2]
[322067754,1712739066257,-934.77,0.00022396,2]
[322067755,1712739066268,-500.0,0.00022396,2]
[322067756,1712739066278,-500.0,0.00022396,2]
[322067757,1712739066291,-537.35,0.00022396,2]
[322067758,1712739066301,-500.0,0.00022396,2]
[322067759,1712739066311,-515.08,0.00022396,2]
[322067760,1712739066324,-500.0,0.00022396,2]
[322067761,1712739066337,-631.39,0.00022396,2]
[322067762,1712739066349,-2573.74,0.00022396,2]
[322067763,1712739066360,-500.0,0.00022396,2]
[322067764,1712739066370,-632.78,0.00022396,2]
[322067765,1712739066383,-500.0,0.00022396,2]
[322067766,1712739066395,-857.64,0.00022396,2]
[322067767,1712739066406,-500.0,0.00022396,2]
[322067768,1712739066417,-500.0,0.00022396,2]
[322067769,1712739066429,-500.0,0.00022396,2]
[322067770,1712739066440,-526.43,0.00022396,2]
[322067771,1712739066451,-500.0,0.00022396,2]
[322067772,1712739066463,-710.81,0.00022396,2]
[322067773,1712739066475,-753.09,0.00022396,2]
[322067774,1712739066487,-500.0,0.00022396,2]
[322067775,1712739066499,-500.0,0.00022396,2]
[322067776,1712739066511,-500.0,0.00022396,2]
[322067777,1712739066523,-500.0,0.00022396,2]
[322067778,1712739066535,-1404.33,0.00022396,2]
[322067779,1712739066547,-500.0,0.00022396,2]
[322067780,1712739066558,-500.0,0.00022396,2]
[322067781,1712739066570,-500.0,0.00022396,2]
[322067782,1712739066585,-500.0,0.00022396,2]
[322067783,1712739066597,-627.71,0.00022396,2]
[322067784,1712739066608,-1405.94,0.00022396,2]
[322067785,1712739066619,-530.64,0.00022396,2]
[322067786,1712739066631,-802.49,0.00022472,2]
[322067787,1712739066642,-1567.52,0.00022472,2]
[322067788,1712739066655,-484.43800266,0.00022472,2]
[322067789,1712739066666,-500.0,0.00022472,2]
[322067790,1712739066678,-500.0,0.00022472,2]
[322067791,1712739066689,-500.0,0.00022472,2]
[322067792,1712739066700,-459.28509658,0.00022472,2]
[322067793,1712739066711,-500.0,0.00022472,2]
[322067794,1712739066723,-500.0,0.00022472,2]
[322067795,1712739066734,-500.0,0.00022472,2]
[322067796,1712739066748,-500.0,0.00022472,2]
[322067797,1712739066759,-1177.39,0.00022472,2]
[322067798,1712739066770,-996.62,0.00022472,2]
[322067799,1712739066784,-6692.18,0.00022472,2]
[322067800,1712739066797,-1135.82,0.00022472,2]
[322067801,1712739066810,-973.83,0.00022472,2]
[322067802,1712739066822,-10415.18,0.00022472,2]
[322067803,1712739066838,-500.0,0.00022472,2]
[322067804,1712739066849,-500.0,0.00022472,2]
[322067805,1712739066866,-152.0,0.00022477,3]
[322067806,1712739066878,-891.26346142,0.000225,2]
[322067807,1712739066909,-2208.84501361,0.000225,2]
[322067808,1712739066927,-150.0,0.000225,2]
[322067809,1712739066938,-500.0,0.00022669,2]
[322067810,1712739066948,-284.43519693,0.00022669,2]
[322067811,1712739066971,-500.0,0.00022669,2]
[322067812,1712739066982,-500.0,0.00022669,2]
[322067813,1712739066993,-500.0,0.00022669,2]
[322067814,1712739067003,-500.0,0.00022669,2]
[322067815,1712739067021,-946.69,0.00022669,2]
[322067816,1712739067193,-1419.29,0.00022669,2]
[322067817,1712739067207,-500.0,0.00022669,2]
[322067818,1712739067221,-625.16,0.00022669,2]
[322067819,1712739067232,-1482.35,0.00022669,2]
[322067820,1712739067243,-500.0,0.00022669,2]
[322067821,1712739067252,-500.0,0.00022669,2]
[322067822,1712739067269,-861.14,0.00022669,2]
[322067823,1712739067283,-500.0,0.00022669,2]
[322067824,1712739067294,-439.65455482,0.00022669,2]
[322067825,1712739067304,-528.57,0.00022669,2]
[322067826,1712739067315,-2120.71,0.00022669,2]
[322067827,1712739067328,-552.2,0.00022669,2]
[322067828,1712739067341,-500.0,0.00022669,2]
[322067829,1712739067352,-2408.96,0.00022669,2]
[322067830,1712739067362,-1276.57,0.00022669,2]
[322067831,1712739067371,-1217.14,0.00022669,2]
[322067832,1712739067382,-2123.86,0.00022669,2]
[322067833,1712739067392,-511.31,0.00022669,2]
[322067834,1712739067402,-572.02,0.00022669,2]
[322067835,1712739067412,-500.0,0.00022669,2]
[322067836,1712739067422,-742.1,0.00022669,2]
[322067837,1712739067432,-1137.02,0.00022669,2]
[322067838,1712739067442,-532.52382139,0.00022669,2]
[322067839,1712739067453,-1754.38,0.00022669,2]
[322067840,1712739067463,-984.81,0.00022669,2]
[322067841,1712739067472,-500.0,0.00022669,2]
[322067842,1712739067482,-612.58,0.00022669,2]
[322067843,1712739067492,-619.53,0.00022669,2]
[322067844,1712739067517,-500.0,0.00022669,2]
[322067845,1712739067553,-530.44,0.00022669,2]
[322067846,1712739067563,-1083.32,0.00022669,2]
[322067847,1712739067575,-765.23,0.00022669,2]
[322067848,1712739067586,-500.0,0.00022669,2]
[322067849,1712739067595,-500.0,0.00022669,2]
[322067850,1712739067605,-500.0,0.00022669,2]
[322067851,1712739067615,-1986.39,0.00022669,2]
[322067852,1712739067626,-521.75,0.00022669,2]
[322067853,1712739067637,-500.0,0.00022669,2]
[322067854,1712739067648,-500.0,0.00022669,2]
[322067855,1712739067657,-500.0,0.00022669,2]
[322067856,1712739067667,-500.0,0.00022669,2]
[322067857,1712739067677,-774.63,0.00022669,2]
[322067858,1712739067687,-1362.67,0.00022669,2]
[322067859,1712739067697,-500.0,0.00022669,2]
[322067860,1712739067707,-3704.96,0.00022669,2]
[322067861,1712739067717,-500.0,0.00022669,2]
[322067862,1712739067727,-500.0,0.00022669,2]
[322067863,1712739067738,-500.0,0.00022669,2]
[322067864,1712739067749,-500.0,0.0002267,2]
[322067865,1712739067759,-624.12532446,0.0002267,2]
[322067866,1712739067768,-500.0,0.0002267,2]
[322067867,1712739067778,-500.0,0.0002267,2]
[322067868,1712739067792,-500.0,0.0002267,2]
[322067869,1712739067802,-570.79,0.0002267,2]
[322067870,1712739067812,-500.0,0.0002267,2]
[322067871,1712739067823,-500.0,0.0002267,2]
[322067872,1712739067832,-613.93,0.0002267,2]
[322067873,1712739067842,-393.32227434,0.0002267,2]
[322067874,1712739067851,-500.0,0.0002267,2]
[322067875,1712739067862,-500.0,0.0002267,2]
[322067876,1712739067872,-578.03,0.0002267,2]
[322067877,1712739067882,-500.0,0.0002267,2]
[322067878,1712739067891,-934.61,0.0002267,2]
[322067879,1712739067901,-500.0,0.0002267,2]
[322067880,1712739067911,-213.81610656,0.0002267,2]
[322067881,1712739067920,-500.0,0.0002267,2]
[322067882,1712739067930,-616.26,0.0002267,2]
[322067883,1712739067939,-887.99,0.0002267,2]
[322067884,1712739067949,-548.96,0.0002267,2]
[322067885,1712739067958,-500.0,0.0002267,2]
[322067886,1712739067969,-898.59,0.0002267,2]
[322067887,1712739067978,-500.0,0.0002267,2]
[322067888,1712739067987,-711.11,0.0002267,2]
[322067889,1712739067997,-683.32,0.0002267,2]
[322067890,1712739068007,-500.0,0.0002267,2]
[322067891,1712739068016,-519.48,0.0002267,2]
[322067892,1712739068025,-500.0,0.0002267,2]
[322067893,1712739068035,-626.89,0.0002267,2]
[322067894,1712739068045,-964.25,0.0002267,2]
[322067895,1712739068055,-500.0,0.0002267,2]
[322067896,1712739068065,-671.33,0.0002267,2]
[322067897,1712739068075,-508.86,0.0002267,2]
[322067898,1712739068086,-547.4,0.0002267,2]
[322067899,1712739068096,-500.0,0.0002267,2]
[322067900,1712739068105,-529.97,0.0002267,2]
[322067901,1712739068114,-500.0,0.0002267,2]
[322067902,1712739068124,-565.15,0.0002267,2]
[322067903,1712739068134,-1021.16,0.0002267,2]
[322067904,1712739068143,-887.08,0.0002267,2]
[322067905,1712739068153,-500.0,0.0002267,2]